bitfinex-derivatives/quotes_BTCF0:USTF0_20250117
["timestamp","ask_amount","ask_price","bid_price","bid_amount"]
[1737140012598,0.4582,104930.0,104920.0,0.08720303]
[1737140014000,0.505826,104930.0,104920.0,0.08720303]
[1737140015396,0.505826,104930.0,104920.0,0.09686341]
[1737140017207,0.3608,104930.0,104920.0,0.09686341]
[1737140017408,0.3608,104930.0,104920.0,0.14449341]
[1737140017604,0.3608,104930.0,104920.0,0.00966038]
[1737140017806,0.471726,104930.0,104910.0,0.44800303]
[1737140018009,0.471726,104930.0,104920.0,0.08720303]
[1737140018210,0.471726,104930.0,104900.0,0.55264409]
[1737140018416,0.3608,104920.0,104900.0,0.55264409]
[1737140018625,0.3608,104920.0,104910.0,0.08720303]
[1737140021408,0.3608,104920.0,104910.0,0.17440606]
[1737140021614,0.3608,104920.0,104910.0,0.08720303]
[1737140029721,0.40843,104920.0,104900.0,0.55264409]
[1737140029922,0.40843,104920.0,104900.0,0.19184409]
[1737140030328,0.40843,104920.0,104900.0,0.55264409]
[1737140031232,0.04763,104920.0,104900.0,0.55264409]
[1737140031426,0.40843,104920.0,104900.0,0.55264409]
[1737140032025,0.40843,104920.0,104900.0,0.52054409]
[1737140033837,0.40843,104920.0,104900.0,0.15974409]
[1737140034830,0.40843,104920.0,104900.0,0.52054409]
[1737140035134,0.40843,104920.0,104900.0,0.15974409]
[1737140035524,0.047644,104890.0,104880.0,0.92577507]
[1737140035835,0.047644,104890.0,104880.0,0.6521781]
[1737140036138,0.3608,104900.0,104880.0,0.18402498]
[1737140036338,0.3608,104900.0,104890.0,0.11533041]
[1737140036530,0.49563803,104910.0,104890.0,0.02812738]
[1737140036735,0.470639,104900.0,104880.0,0.12862195]
[1737140036936,0.470639,104900.0,104890.0,0.08720303]
[1737140037929,0.470639,104900.0,104880.0,0.12862195]
[1737140038134,0.047644,104890.0,104880.0,0.12862195]
[1737140039835,0.047644,104890.0,104880.0,0.09682195]
[1737140040041,0.047644,104890.0,104880.0,0.18402498]
[1737140040241,0.047644,104890.0,104880.0,0.21422498]
[1737140040640,0.4533,104900.0,104880.0,0.57502498]
[1737140040837,0.469341,104900.0,104890.0,0.08720303]
[1737140041042,0.438741,104900.0,104890.0,0.08720303]
[1737140041235,0.408441,104900.0,104890.0,0.08720303]
[1737140041441,0.408441,104900.0,104890.0,0.11780303]
[1737140041638,0.047641,104900.0,104890.0,0.11780303]
[1737140041842,0.047641,104900.0,104890.0,0.47860303]
[1737140042035,0.047641,104900.0,104890.0,0.50920303]
[1737140043441,0.549464,104920.0,104890.0,0.50920303]
[1737140043442,0.047631,104920.0,104890.0,0.59640606]
[1737140043646,0.3608,104930.0,104910.0,0.53520606]
[1737140043842,0.408427,104930.0,104920.0,0.08720303]
[1737140048543,0.047627,104930.0,104920.0,0.08720303]
[1737140048846,0.408427,104930.0,104920.0,0.08720303]
[1737140049047,0.408427,104930.0,104910.0,0.47860303]
[1737140049240,0.04763,104920.0,104910.0,0.47860303]
[1737140049749,0.49563303,104920.0,104910.0,0.00951013]
[1737140049944,0.50293,104920.0,104910.0,0.08720303]
[1737140050145,0.10883,104920.0,104910.0,0.08720303]
[1737140050444,0.10883,104920.0,104910.0,0.12030303]
[1737140051344,0.10883,104920.0,104900.0,0.47930303]
[1737140051651,0.10883,104920.0,104910.0,0.08720303]
[1737140052148,0.10883,104920.0,104900.0,0.48875827]
[1737140053747,0.10883,104920.0,104910.0,0.08720303]
[1737140053942,0.10883,104920.0,104910.0,0.44800303]
[1737140054637,0.10883,104920.0,104910.0,0.08720303]
[1737140055445,0.04763,104920.0,104910.0,0.08720303]
[1737140055952,0.04763,104920.0,104910.0,0.11730303]
[1737140063450,0.04763,104920.0,104910.0,0.47810303]
[1737140063650,0.04763,104920.0,104910.0,0.11730303]
[1737140065061,0.04763,104920.0,104910.0,0.47810303]
[1737140065257,0.3921,104930.0,104910.0,0.56530606]
[1737140065258,0.3608,104930.0,104910.0,0.56530606]
[1737140065453,0.3608,104930.0,104920.0,0.08720303]
[1737140067666,0.3608,104930.0,104920.0,0.11990303]
[1737140073764,0.3608,104930.0,104920.0,0.1292381]
[1737140082772,0.077823,104940.0,104920.0,0.1292381]
[1737140082972,0.3608,104930.0,104920.0,0.04203507]
[1737140085976,0.49562903,104930.0,104920.0,0.00933507]
[1737140086176,0.440026,104930.0,104910.0,0.11730303]
[1737140086373,0.472426,104930.0,104910.0,0.11730303]
[1737140086564,0.0311,104920.0,104910.0,0.0301]
[1737140086764,0.472426,104930.0,104910.0,0.20450606]
[1737140086968,0.4248,104930.0,104920.0,0.08720303]
[1737140087776,0.472426,104930.0,104920.0,0.08720303]
[1737140088166,0.520056,104930.0,104910.0,0.14870303]
[1737140088370,0.472426,104930.0,104920.0,0.08720303]
[1737140092974,0.047631,104920.0,104910.0,0.00962307]
[1737140093170,0.079531,104920.0,104900.0,0.47960303]
[1737140093375,0.079531,104920.0,104910.0,0.05720871]
[1737140093882,0.079531,104920.0,104910.0,0.08900871]
[1737140094575,0.079531,104920.0,104910.0,0.14621742]
[1737140094776,0.079531,104920.0,104910.0,0.08900871]
[1737140097687,0.079531,104920.0,104900.0,0.42749766]
[1737140097688,0.047635,104910.0,104900.0,0.42749766]
[1737140097981,0.49774371,104910.0,104900.0,0.00948895]
[1737140098180,0.49774371,104910.0,104890.0,0.4237]
[1737140098181,0.53054371,104910.0,104890.0,0.44920871]
[1737140098486,0.04764,104900.0,104890.0,0.08840871]
[1737140098688,0.04764,104900.0,104890.0,0.44920871]
[1737140099284,0.473338,104910.0,104890.0,0.44834688]
[1737140099488,0.473338,104910.0,104900.0,0.08717892]
[1737140100879,0.473338,104910.0,104890.0,0.43350393]
[1737140100880,0.520977,104910.0,104890.0,0.52068285]
[1737140101091,0.56051692,104910.0,104890.0,0.48768285]
[1737140101987,0.56051692,104910.0,104890.0,0.12688285]
[1737140101988,0.40844,104900.0,104890.0,0.12688285]
[1737140104590,0.40844,104900.0,104890.0,0.00936576]
[1737140104791,0.43904,104900.0,104880.0,0.62827066]
[1737140104990,0.43904,104900.0,104890.0,0.08717892]
[1737140106092,0.43904,104900.0,104880.0,0.62827066]
[1737140106389,0.047644,104890.0,104880.0,0.63752278]
[1737140106590,0.439042,104900.0,104880.0,0.63752278]
[1737140106786,0.439042,104900.0,104890.0,0.08717892]
[1737140107492,0.52622092,104900.0,104880.0,0.01068211]
[1737140107688,0.52802592,104890.0,104880.0,0.00925212]
[1737140107883,0.56112592,104890.0,104860.0,7.436e-05]
[1737140108091,0.49563292,104870.0,104860.0,7.436e-05]
[1737140108288,0.408454,104870.0,104860.0,7.436e-05]
[1737140108596,0.52633292,104870.0,104860.0,7.436e-05]
[1737140108796,0.55863292,104870.0,104860.0,7.436e-05]
[1737140109298,0.51108047,104870.0,104850.0,0.45957961]
[1737140109484,0.047656,104860.0,104850.0,0.33980069]
[1737140109688,0.13483492,104860.0,104850.0,0.33980069]
[1737140109887,0.13483492,104860.0,104850.0,0.42697961]
[1737140109888,0.047656,104860.0,104850.0,0.42697961]
[1737140110191,0.471455,104870.0,104850.0,0.42697961]
[1737140110386,0.4238,104870.0,104850.0,0.08860928]
[1737140110588,0.0477433,104860.0,104850.0,0.09818855]
[1737140110787,0.0010863,104860.0,104850.0,0.10518855]
[1737140110982,0.0010863,104860.0,104850.0,0.08612176]
[1737140111380,0.0010863,104860.0,104850.0,0.44692176]
[1737140111589,0.0010863,104860.0,104850.0,0.53410068]
[1737140111791,0.0010863,104860.0,104850.0,0.46455819]
[1737140111980,0.0010863,104860.0,104850.0,0.49775819]
[1737140112386,0.0010863,104860.0,104850.0,0.57793711]
[1737140112387,8.63e-05,104860.0,104850.0,0.57793711]
[1737140112992,0.109446,104890.0,104850.0,0.62559911]
[1737140113297,0.109446,104890.0,104880.0,0.08717892]
[1737140113595,0.109446,104890.0,104870.0,0.44797892]
[1737140113797,0.0618,104890.0,104870.0,0.44797892]
[1737140114296,0.109447,104890.0,104870.0,0.44797892]
[1737140114890,0.157095,104890.0,104870.0,0.44797892]
[1737140115087,0.047648,104880.0,104870.0,0.44797892]
[1737140117100,0.078444,104890.0,104870.0,0.44797892]
[1737140117398,0.439244,104890.0,104880.0,0.08717892]
[1737140117595,0.439244,104890.0,104870.0,0.48779626]
[1737140119694,0.047644,104890.0,104870.0,0.48779626]
[1737140119900,0.047644,104890.0,104880.0,0.0324]
[1737140120201,0.047648,104880.0,104870.0,0.37011734]
[1737140121394,0.3608,104930.0,104870.0,2.0962179]
[1737140121596,0.44797892,104930.0,104900.0,0.08717892]
[1737140121796,0.3608,104910.0,104890.0,0.44797892]
[1737140121999,0.44797892,104910.0,104900.0,0.0318]
[1737140122402,0.44797892,104910.0,104880.0,0.47997892]
[1737140122601,0.3608,104910.0,104890.0,0.11897892]
[1737140122898,0.3928,104910.0,104890.0,0.0318]
[1737140123798,0.3928,104910.0,104890.0,0.11897892]
[1737140124106,0.3928,104910.0,104890.0,0.0318]
[1737140124604,0.3928,104910.0,104890.0,0.11897892]
[1737140125198,0.13481992,104900.0,104880.0,0.51047892]
[1737140125401,0.111741,104900.0,104880.0,0.51047892]
[1737140125803,0.111741,104900.0,104890.0,0.08717892]
[1737140126804,0.440435,104910.0,104890.0,0.08717892]
[1737140127001,0.440435,104910.0,104900.0,0.08717892]
[1737140128504,0.408432,104920.0,104900.0,0.08717892]
[1737140128700,0.408432,104920.0,104900.0,0.11857892]
[1737140128896,0.047635,104910.0,104900.0,0.08717892]
[1737140129096,0.456073,104910.0,104890.0,0.11887892]
[1737140129308,0.501235,104910.0,104890.0,0.11887892]
[1737140129509,0.548873,104910.0,104890.0,0.11887892]
[1737140129704,0.501235,104910.0,104890.0,0.11887892]
[1737140130516,0.548873,104910.0,104890.0,0.11887892]
[1737140130704,0.501235,104910.0,104890.0,0.11887892]
[1737140131608,0.548872,104910.0,104890.0,0.11887892]
[1737140131808,0.548872,104910.0,104890.0,0.12836112]
[1737140132111,0.047639,104900.0,104890.0,0.12836112]
[1737140133606,0.047644,104890.0,104870.0,0.4813851]
[1737140133812,0.047648,104880.0,104870.0,0.4813851]
[1737140134008,0.047648,104880.0,104870.0,0.39420618]
[1737140134207,0.047648,104880.0,104870.0,0.39229906]
[1737140134413,0.047648,104880.0,104870.0,0.44807798]
[1737140134604,0.047648,104880.0,104870.0,0.4573913]
[1737140136315,0.49562692,104880.0,104870.0,9.906e-05]
[1737140137322,0.047653,104870.0,104860.0,0.00143057]
[1737140137516,0.047653,104870.0,104860.0,0.08860949]
[1737140137517,0.474253,104870.0,104860.0,0.08860949]
[1737140138607,0.113453,104870.0,104860.0,0.44940949]
[1737140138912,0.408449,104880.0,104860.0,0.44797892]
[1737140139115,0.408449,104880.0,104870.0,0.08717892]
[1737140142013,0.408449,104880.0,104870.0,0.08272973]
[1737140142913,0.047649,104880.0,104870.0,0.44352973]
[1737140143108,0.552294,104890.0,104870.0,0.44352973]
[1737140143306,0.047648,104880.0,104870.0,0.08272973]
[1737140144105,0.408448,104880.0,104860.0,0.51107892]
[1737140144311,0.44797892,104880.0,104860.0,0.51107892]
[1737140144508,0.047653,104870.0,104860.0,0.43340631]
[1737140144910,0.047653,104870.0,104860.0,0.4280075]
[1737140145110,0.047653,104870.0,104860.0,0.51518642]
[1737140146115,0.047653,104870.0,104860.0,0.3960075]
[1737140146314,0.047653,104870.0,104860.0,0.3649075]
[1737140146510,0.079053,104870.0,104860.0,0.3649075]
[1737140146711,0.16623192,104870.0,104860.0,0.3649075]
[1737140146912,0.19803192,104870.0,104860.0,0.3649075]
[1737140147711,0.55883192,104870.0,104860.0,0.00950631]
[1737140147915,0.047659,104860.0,104840.0,0.4225]
[1737140148116,0.49563792,104860.0,104840.0,0.4225]
[1737140148518,0.49563792,104860.0,104840.0,0.50967892]
[1737140148712,0.408459,104860.0,104850.0,0.08717892]
[1737140149515,0.408459,104860.0,104840.0,0.14887892]
[1737140149717,0.408459,104860.0,104840.0,0.50967892]
[1737140150018,0.408459,104860.0,104840.0,0.14797912]
[1737140150213,0.408459,104860.0,104850.0,0.08717892]
[1737140150416,0.408459,104860.0,104840.0,0.15758043]
[1737140151422,0.408462,104850.0,104840.0,0.00960131]
[1737140151622,0.440762,104850.0,104830.0,0.48077892]
[1737140151824,0.440762,104850.0,104840.0,0.08717892]
[1737140152019,0.440762,104850.0,104840.0,0.08307982]
[1737140153124,0.440762,104850.0,104830.0,0.48077892]
[1737140153323,0.440762,104850.0,104830.0,0.49015311]
[1737140154023,0.3931,104850.0,104840.0,0.08717892]
[1737140154325,0.3941,104850.0,104840.0,0.0754815]
[1737140154718,0.441762,104850.0,104840.0,0.0754815]
[1737140155233,0.442762,104850.0,104840.0,0.0754815]
[1737140155412,0.441762,104850.0,104840.0,0.0754815]
[1737140155818,0.441762,104850.0,104830.0,0.49315311]
[1737140156016,0.440762,104850.0,104830.0,0.48305468]
[1737140156823,0.52794092,104850.0,104830.0,0.48305468]
[1737140157731,0.440762,104850.0,104830.0,0.48305468]
[1737140157920,0.441762,104850.0,104830.0,0.49005468]
[1737140158323,0.441762,104850.0,104830.0,0.48075674]
[1737140158518,0.442762,104850.0,104830.0,0.48375674]
[1737140159029,0.441762,104850.0,104830.0,0.47675674]
[1737140159228,0.440762,104850.0,104830.0,0.12935311]
[1737140160130,0.440762,104850.0,104830.0,0.12892757]
[1737140160625,0.13484592,104840.0,104830.0,0.04174865]
[1737140161824,0.49564592,104840.0,104830.0,0.04174865]
[1737140162529,0.49564592,104840.0,104830.0,0.00937419]
[1737140162721,0.49564592,104840.0,104820.0,0.15350963]
[1737140162921,0.3608,104830.0,104820.0,0.15350963]
[1737140163121,0.3608,104830.0,104820.0,0.15011732]
[1737140163419,0.3608,104830.0,104820.0,0.19253478]
[1737140163620,0.3608,104830.0,104820.0,0.10535586]
[1737140163920,0.49564992,104830.0,104820.0,0.00961746]
[1737140164118,0.59364992,104830.0,104810.0,0.39365557]
[1737140164327,0.49565492,104820.0,104810.0,0.39365557]
[1737140164521,0.49565492,104820.0,104800.0,0.52645557]
[1737140164720,0.3608,104810.0,104800.0,0.52645557]
[1737140165125,0.408481,104810.0,104800.0,0.52645557]
[1737140165629,0.408481,104810.0,104800.0,0.42645043]
[1737140166230,0.408481,104810.0,104800.0,0.43608332]
[1737140166530,0.3608,104820.0,104800.0,0.18533884]
[1737140166726,0.3935,104830.0,104810.0,0.08717892]
[1737140167030,0.3935,104830.0,104820.0,0.08717892]
[1737140167924,0.52834992,104830.0,104800.0,0.76408332]
[1737140168129,0.08717892,104810.0,104800.0,0.43618332]
[1737140168332,0.56035592,104820.0,104800.0,0.52336224]
[1737140168628,0.3608,104810.0,104800.0,0.52336224]
[1737140168819,0.3608,104810.0,104800.0,0.43618332]
[1737140169026,0.3608,104810.0,104800.0,0.09825992]
[1737140169330,0.49565892,104810.0,104800.0,0.09825992]
[1737140169521,0.52815892,104810.0,104800.0,0.09825992]
[1737140169722,0.44098,104810.0,104800.0,0.09825992]
[1737140169930,0.44098,104810.0,104800.0,0.18543884]
[1737140169931,0.3933,104810.0,104800.0,0.18543884]
[1737140170128,0.473178,104820.0,104800.0,0.18543884]
[1737140170333,0.441078,104820.0,104810.0,0.08717892]
[1737140170534,0.52825692,104820.0,104800.0,0.18543884]
[1737140170831,0.441078,104820.0,104800.0,0.18543884]
[1737140171019,0.52825692,104820.0,104800.0,0.18543884]
[1737140171823,0.441078,104820.0,104800.0,0.18543884]
[1737140172434,0.52825692,104820.0,104800.0,0.18543884]
[1737140173133,0.52825692,104820.0,104800.0,0.17069407]
[1737140173134,0.441078,104820.0,104800.0,0.17069407]
[1737140174020,0.52825692,104820.0,104800.0,0.17069407]
[1737140174227,0.49565892,104810.0,104800.0,0.05061515]
[1737140174422,0.52615892,104810.0,104800.0,0.05061515]
[1737140175528,0.52615892,104810.0,104800.0,0.04781577]
[1737140175936,0.52615892,104810.0,104800.0,0.03809658]
[1737140176133,0.52615892,104810.0,104790.0,9.692e-05]
[1737140176134,0.047685,104800.0,104790.0,9.692e-05]
[1737140176335,0.047689,104790.0,104780.0,0.3379234]
[1737140176531,0.64464684,104790.0,104780.0,0.3379234]
[1737140176736,0.470289,104790.0,104780.0,0.3379234]
[1737140176933,0.60515992,104790.0,104770.0,0.42510232]
[1737140177239,0.49567292,104780.0,104770.0,0.33428706]
[1737140177626,0.88285184,104780.0,104750.0,0.39365557]
[1737140177835,0.047709,104750.0,104730.0,0.00937902]
[1737140178042,0.7216,104740.0,104720.0,0.51343449]
[1737140178248,0.3608,104740.0,104730.0,0.10208848]
[1737140178429,0.3608,104750.0,104730.0,0.5500674]
[1737140178634,0.3608,104750.0,104740.0,0.08717892]
[1737140179334,0.001,104740.0,104730.0,0.44797892]
[1737140179933,0.3608,104750.0,104730.0,0.44797892]
[1737140180136,0.3608,104750.0,104740.0,0.08717892]
[1737140180933,0.3608,104760.0,104740.0,0.08717892]
[1737140181138,0.3608,104760.0,104740.0,0.3608]
[1737140181338,0.3608,104760.0,104750.0,0.11817892]
[1737140187650,0.36223276,104770.0,104750.0,0.11817892]
[1737140187942,0.36223276,104770.0,104760.0,0.08717892]
[1737140188340,0.40993076,104770.0,104760.0,0.08717892]
[1737140190450,0.40993076,104770.0,104760.0,0.07118245]
[1737140190836,0.40993076,104770.0,104750.0,0.11817892]
[1737140191043,0.3608,104760.0,104750.0,0.11817892]
[1737140191651,0.3608,104760.0,104750.0,0.15087892]
[1737140191949,0.36051768,104760.0,104750.0,0.15087892]
[1737140192145,0.36051768,104760.0,104750.0,0.14907932]
[1737140194154,0.36051768,104760.0,104750.0,0.12900851]
[1737140195756,0.40821968,104760.0,104750.0,0.11987892]
[1737140197756,0.40821968,104760.0,104750.0,0.08717892]
[1737140199054,0.36051768,104760.0,104750.0,0.08717892]
[1737140199247,0.43993076,104770.0,104750.0,0.08717892]
[1737140199448,0.3608,104760.0,104740.0,0.46479569]
[1737140199853,0.3608,104760.0,104750.0,0.08717892]
[1737140203156,0.3608,104760.0,104740.0,0.55197461]
[1737140203561,0.3608,104760.0,104750.0,0.08717892]
[1737140205164,0.3608,104760.0,104740.0,0.19117461]
[1737140205364,0.3608,104760.0,104750.0,0.08717892]
[1737140206364,0.3608,104760.0,104750.0,0.07218223]
[1737140207673,0.3608,104760.0,104750.0,0.41010532]
[1737140208767,0.408502,104760.0,104750.0,0.33792309]
[1737140208966,0.408502,104760.0,104750.0,0.42510201]
[1737140209170,0.408502,104760.0,104750.0,0.41630396]
[1737140209365,0.408502,104760.0,104750.0,0.32912504]
[1737140209574,0.472102,104760.0,104750.0,0.32912504]
[1737140209777,0.55928092,104760.0,104750.0,0.32912504]
[1737140209965,0.472102,104760.0,104750.0,0.32912504]
[1737140210370,0.55928092,104760.0,104750.0,0.32912504]
[1737140211173,0.60698692,104760.0,104740.0,0.00939569]
[1737140211374,0.3608,104750.0,104730.0,0.12886814]
[1737140211562,0.3608,104740.0,104730.0,0.12886814]
[1737140212166,0.3608,104740.0,104730.0,0.52227769]
[1737140212775,0.3608,104740.0,104730.0,0.60945661]
[1737140212963,0.3608,104750.0,104730.0,1.01797261]
[1737140213163,0.33148,104750.0,104740.0,0.11987892]
[1737140213569,0.3608,104760.0,104740.0,0.11987892]
[1737140213878,0.3608,104760.0,104750.0,0.08717892]
[1737140214074,0.47213076,104770.0,104750.0,0.08717892]
[1737140214266,0.36223276,104770.0,104760.0,0.08717892]
[1737140218375,0.40993076,104770.0,104760.0,0.08717892]
[1737140219470,0.40993076,104770.0,104760.0,0.10192154]
[1737140220479,0.36223276,104770.0,104760.0,0.10192154]
[1737140220671,0.36223276,104770.0,104760.0,0.13422154]
[1737140223970,0.49710968,104770.0,104760.0,0.04704262]
[1737140224177,0.49710968,104770.0,104760.0,0.01474262]
[1737140224372,0.54481068,104770.0,104750.0,0.45600955]
[1737140224579,0.3608,104760.0,104750.0,0.52540123]
[1737140225085,0.3608,104760.0,104750.0,0.82714724]
[1737140226486,0.3608,104760.0,104750.0,0.13199168]
[1737140228180,0.3608,104760.0,104750.0,0.4486631]
[1737140228979,0.3608,104760.0,104750.0,0.14691709]
[1737140230481,0.3608,104760.0,104750.0,0.12902113]
[1737140230883,0.36223276,104770.0,104750.0,0.12902113]
[1737140231084,0.36223276,104770.0,104760.0,0.12037892]
[1737140231276,0.00143276,104770.0,104760.0,0.12037892]
[1737140231472,0.06275558,104800.0,104770.0,0.047697]
[1737140231473,0.3608,104800.0,104770.0,0.047697]
[1737140231677,0.439081,104810.0,104790.0,0.08717892]
[1737140231986,0.3608,104800.0,104790.0,0.08717892]
[1737140232182,0.3914,104810.0,104790.0,0.17435784]
[1737140232377,0.3914,104810.0,104800.0,0.08717892]
[1737140232378,0.3608,104810.0,104800.0,0.08717892]
[1737140233283,0.3608,104810.0,104800.0,0.42614572]
[1737140233489,0.44797892,104810.0,104800.0,0.3389668]
[1737140233687,0.49565892,104810.0,104800.0,0.3389668]
[1737140233881,0.52675892,104810.0,104800.0,0.3389668]
[1737140234988,0.52675892,104810.0,104800.0,0.28207553]
[1737140235191,0.47907892,104810.0,104800.0,0.28207553]
[1737140235385,0.3919,104810.0,104800.0,0.28207553]
[1737140235581,0.3608,104820.0,104800.0,0.73005445]
[1737140235786,0.40990176,104830.0,104810.0,0.08717892]
[1737140236092,0.40990176,104830.0,104820.0,0.08717892]
[1737140236286,0.40990176,104830.0,104810.0,0.11997892]
[1737140236484,0.40990176,104830.0,104810.0,0.09932594]
[1737140236679,0.36223176,104830.0,104820.0,0.28207553]
[1737140237601,0.36223176,104830.0,104810.0,0.43829274]
[1737140237602,0.36223176,104830.0,104810.0,0.38140147]
[1737140237890,0.36223176,104830.0,104820.0,0.08717892]
[1737140238090,0.36223176,104830.0,104810.0,0.38140147]
[1737140238492,0.49708168,104830.0,104810.0,0.38140147]
[1737140239589,0.36223176,104830.0,104810.0,0.38140147]
[1737140239986,0.3608,104820.0,104810.0,0.38140147]
[1737140240188,0.36223176,104830.0,104810.0,0.38140147]
[1737140240386,0.3608,104820.0,104810.0,0.38140147]
[1737140241994,0.40990176,104830.0,104810.0,0.38140147]
[1737140242190,0.3608,104820.0,104810.0,0.38140147]
[1737140242991,0.3608,104820.0,104810.0,0.09932594]
[1737140248492,0.408477,104820.0,104800.0,0.41651214]
[1737140248692,0.49565592,104820.0,104800.0,0.41651214]
[1737140248893,0.408477,104820.0,104800.0,0.41651214]
[1737140249198,0.3608,104810.0,104800.0,0.41651214]
[1737140249798,0.408477,104820.0,104800.0,0.13443661]
[1737140249998,0.408477,104820.0,104810.0,0.08717892]
[1737140250398,0.3608,104820.0,104810.0,0.08717892]
[1737140253301,0.408476,104820.0,104800.0,0.41651214]
[1737140253704,0.408476,104820.0,104810.0,0.08717892]
[1737140253895,0.3608,104820.0,104810.0,0.08717892]
[1737140254606,0.3608,104820.0,104810.0,0.12007892]
[1737140258712,0.3608,104820.0,104810.0,0.40215445]
[1737140259302,0.3608,104820.0,104810.0,0.43445445]
[1737140261112,0.3608,104820.0,104810.0,0.49134572]
[1737140262015,0.3608,104820.0,104810.0,0.15237892]
[1737140262207,0.40990176,104830.0,104810.0,0.15237892]
[1737140262509,0.40990176,104830.0,104820.0,0.08717892]
[1737140263009,0.40990176,104830.0,104820.0,0.42675234]
[1737140265013,0.40990176,104830.0,104820.0,0.33957342]
[1737140265410,0.5842596,104830.0,104820.0,0.33957342]
[1737140265605,0.49708068,104830.0,104820.0,0.33957342]
[1737140266116,0.49708068,104830.0,104820.0,0.23977342]
[1737140266508,0.49708068,104830.0,104820.0,0.19407342]
[1737140266713,0.047675,104820.0,104810.0,0.28323931]
[1737140267013,0.49565392,104820.0,104810.0,0.28323931]
[1737140268512,0.047679,104810.0,104800.0,0.298297]
[1737140268707,0.047679,104810.0,104800.0,0.28323931]
[1737140268708,0.49565792,104810.0,104800.0,0.28323931]
[1737140270421,0.408479,104810.0,104800.0,0.28323931]
[1737140270614,0.408479,104810.0,104800.0,0.37041823]
[1737140273023,0.408479,104810.0,104800.0,0.28323931]
[1737140274230,0.408479,104810.0,104800.0,0.40221823]
[1737140275031,0.3608,104810.0,104800.0,0.40221823]
[1737140276134,0.3608,104810.0,104800.0,0.11897892]
[1737140278037,0.408479,104810.0,104800.0,0.11897892]
[1737140278339,0.408479,104810.0,104800.0,0.15047892]
[1737140280737,0.3608,104810.0,104800.0,0.15047892]
[1737140281140,0.408479,104810.0,104800.0,0.15047892]
[1737140281638,0.408479,104810.0,104800.0,0.0633]
[1737140283635,0.49565792,104810.0,104800.0,0.0633]
[1737140284951,0.49565792,104810.0,104800.0,0.06250018]
[1737140288135,0.408479,104810.0,104800.0,0.40215249]
[1737140290843,0.408479,104810.0,104800.0,0.06250018]
[1737140293543,0.49565792,104810.0,104800.0,0.06250018]
[1737140294048,0.85645792,104810.0,104800.0,0.05299998]
[1737140294240,0.408478,104820.0,104800.0,0.1401789]
[1737140294438,0.408478,104820.0,104800.0,0.5009789]
[1737140294740,0.408478,104820.0,104810.0,0.0315]
[1737140294741,0.408475,104820.0,104810.0,0.0315]
[1737140294947,0.49565392,104820.0,104810.0,0.0315]
[1737140295847,0.49565392,104820.0,104810.0,0.37147392]
[1737140299137,0.49565392,104820.0,104810.0,0.33997392]
[1737140299737,0.58283284,104820.0,104810.0,0.33997392]
[1737140300048,0.60323284,104820.0,104810.0,0.33997392]
[1737140300245,0.61363284,104820.0,104810.0,0.33997392]
[1737140300546,0.047679,104810.0,104800.0,0.3929739]
[1737140300747,0.49565792,104810.0,104800.0,0.3929739]
[1737140301746,0.49565792,104810.0,104800.0,0.33997392]
[1737140304451,0.408479,104810.0,104800.0,0.37066445]
[1737140304650,0.408479,104810.0,104800.0,0.40166445]
[1737140304946,0.3608,104810.0,104800.0,0.40166445]
[1737140305150,0.3608,104810.0,104800.0,0.11817892]
[1737140305348,0.408479,104810.0,104800.0,0.11817892]
[1737140306148,0.408479,104810.0,104800.0,0.42413251]
[1737140306935,0.3608,104810.0,104800.0,0.42413251]
[1737140307542,0.3608,104810.0,104800.0,0.11817892]
[1737140307749,0.408479,104810.0,104800.0,0.11817892]
[1737140307945,0.49565792,104810.0,104800.0,0.031]
[1737140308549,0.49565792,104810.0,104800.0,0.37105004]
[1737140312053,0.49565792,104810.0,104800.0,0.35875282]
[1737140313945,0.408479,104810.0,104800.0,0.35875282]
[1737140315351,0.49565792,104810.0,104800.0,0.35875282]
[1737140315853,0.49565792,104810.0,104800.0,0.01870278]
[1737140319457,0.49565792,104810.0,104800.0,0.35876662]
[1737140321158,0.49565792,104810.0,104800.0,0.35742561]
[1737140323159,0.49565792,104810.0,104800.0,0.34742787]
[1737140324053,0.49565792,104810.0,104800.0,0.34006384]
[1737140326659,0.408479,104810.0,104800.0,0.34006384]
[1737140326860,0.3608,104810.0,104800.0,0.42724276]
[1737140327059,0.408477,104820.0,104800.0,0.42724276]
[1737140327259,0.408477,104820.0,104810.0,0.0315]
[1737140328465,0.49565592,104820.0,104810.0,0.0315]
[1737140328769,0.49565592,104820.0,104810.0,0.37109349]
[1737140330256,0.49565592,104820.0,104810.0,0.43479349]
[1737140331160,0.408477,104820.0,104810.0,0.43479349]
[1737140333762,0.49565592,104820.0,104810.0,0.41477512]
[1737140337163,0.408477,104820.0,104810.0,0.35107512]
[1737140337363,0.408477,104820.0,104810.0,0.41197512]
[1737140339766,0.408477,104820.0,104810.0,0.49915404]
[1737140340970,0.408477,104820.0,104810.0,0.41197512]
[1737140341172,0.49565592,104820.0,104810.0,0.41197512]
[1737140342772,0.408477,104820.0,104810.0,0.41197512]
[1737140344175,0.408477,104820.0,104810.0,0.07238163]
[1737140344469,0.408477,104820.0,104810.0,0.15956055]
[1737140345172,0.408477,104820.0,104810.0,0.49915404]
[1737140346468,0.408477,104820.0,104810.0,0.41197512]
[1737140346875,0.49565592,104820.0,104810.0,0.41197512]
[1737140350876,0.408477,104820.0,104810.0,0.41197512]
[1737140351668,0.49565592,104820.0,104810.0,0.41197512]
[1737140354169,0.49565592,104820.0,104810.0,0.35573469]
[1737140354367,0.49565592,104820.0,104810.0,0.32563469]
[1737140355273,0.49565592,104820.0,104810.0,0.66522818]
[1737140356173,0.49565592,104820.0,104810.0,0.38187512]
[1737140356674,0.408477,104820.0,104810.0,0.38187512]
[1737140360880,0.408477,104820.0,104810.0,0.46905404]
[1737140361082,0.408477,104820.0,104810.0,0.49925404]
[1737140362373,0.408477,104820.0,104810.0,0.46561414]
[1737140363374,0.408477,104820.0,104810.0,0.15966055]
[1737140364469,0.54217487,104840.0,104810.0,0.20733955]
[1737140364681,0.57840494,104840.0,104830.0,0.08717892]
[1737140364882,0.57840494,104840.0,104820.0,0.11887892]
[1737140365188,0.57840494,104840.0,104830.0,0.14877892]
[1737140365678,0.53073894,104840.0,104830.0,0.14877892]
[1737140365983,0.53073894,104840.0,104830.0,0.4886683]
[1737140366183,0.53073894,104840.0,104830.0,0.8494683]
[1737140366184,0.16993894,104840.0,104830.0,0.8494683]
[1737140366381,0.36223131,104850.0,104830.0,0.8971373]
[1737140366583,0.36223131,104850.0,104840.0,0.11887892]
[1737140367676,0.36223131,104850.0,104840.0,0.4578267]